bitfinex/quotes_BTCUSD_20241222
["timestamp","ask_amount","ask_price","bid_price","bid_amount"]
[1734846842650,0.1233712,96349.0,96348.0,0.11987181]
[1734846843261,0.1233712,96349.0,96348.0,0.11687181]
[1734846844681,0.1233712,96349.0,96348.0,0.11887181]
[1734846845870,0.1233712,96349.0,96348.0,0.11687181]
[1734846846070,0.0760712,96349.0,96348.0,0.11187181]
[1734846846273,0.0002712,96349.0,96348.0,0.11387181]
[1734846846427,0.0002712,96349.0,96348.0,0.11887181]
[1734846847858,0.00156854,96349.0,96348.0,0.005]
[1734846848238,0.00156854,96349.0,96348.0,0.007]
[1734846848599,0.33344654,96349.0,96348.0,0.002]
[1734846848824,0.207606,96336.0,96329.0,0.023]
[1734846849004,0.283006,96336.0,96328.0,0.09262848]
[1734846849377,0.331906,96336.0,96328.0,0.09262848]
[1734846849795,0.331906,96336.0,96328.0,0.0001712]
[1734846850611,0.1243,96336.0,96328.0,0.0001712]
[1734846851441,0.12559761,96336.0,96328.0,0.0001712]
[1734846851800,0.1243,96336.0,96335.0,0.0091712]
[1734846852001,0.12559766,96336.0,96335.0,0.0091712]
[1734846852215,0.12559769,96336.0,96335.0,0.0041712]
[1734846852425,0.12559769,96336.0,96335.0,0.0061712]
[1734846852644,0.13612186,96336.0,96335.0,0.0021712]
[1734846852844,0.13612186,96336.0,96335.0,0.0001712]
[1734846853073,0.13612186,96336.0,96335.0,0.0011712]
[1734846853820,0.13712186,96336.0,96335.0,0.0011712]
[1734846854248,0.12659769,96336.0,96335.0,0.0011712]
[1734846854410,0.12659769,96336.0,96335.0,0.0001712]
[1734846854411,0.1253,96336.0,96335.0,0.0001712]
[1734846854611,0.12659776,96336.0,96335.0,0.0001712]
[1734846854790,0.12759766,96336.0,96335.0,0.0001712]
[1734846855428,0.0774,96336.0,96335.0,0.0001712]
[1734846855632,0.002,96336.0,96335.0,0.0001712]
[1734846855832,0.002,96336.0,96335.0,0.1244796]
[1734846856581,0.0002712,96349.0,96343.0,0.20759]
[1734846856786,0.00156862,96349.0,96344.0,0.1013084]
[1734846857367,0.00156862,96349.0,96336.0,0.207605]
[1734846857579,0.00156862,96349.0,96337.0,0.1013084]
[1734846857987,0.20758,96348.0,96337.0,0.1013084]
[1734846858204,0.08229752,96347.0,96337.0,0.1013084]
[1734846858409,0.207585,96346.0,96337.0,0.1013084]
[1734846858611,0.207595,96342.0,96335.0,0.0001712]
[1734846858834,0.00129759,96341.0,96335.0,0.0081712]
[1734846859247,0.00129759,96341.0,96335.0,0.0001712]
[1734846859594,0.00129759,96341.0,96337.0,0.002]
[1734846859795,0.00129758,96340.0,96337.0,0.001]
[1734846860111,0.00129759,96344.0,96337.0,0.001]
[1734846860294,0.207591,96343.0,96337.0,0.001]
[1734846860494,0.00129758,96342.0,96337.0,0.001]
[1734846860703,0.00129758,96341.0,96337.0,0.001]
[1734846861267,0.00129758,96341.0,96335.0,0.0001712]
[1734846861641,0.00129758,96340.0,96335.0,0.0001712]
[1734846861822,0.00129758,96344.0,96335.0,0.0001712]
[1734846862401,0.0002712,96349.0,96336.0,0.1013084]
[1734846862600,0.001,96344.0,96339.0,0.2743084]
[1734846862802,0.0002712,96349.0,96344.0,0.380589]
[1734846863001,0.0002712,96349.0,96346.0,0.207585]
[1734846863152,0.0002712,96349.0,96348.0,0.20758]
[1734846863370,0.0002712,96349.0,96348.0,0.3088884]
[1734846865447,0.0002712,96349.0,96348.0,1.2014166]
[1734846865636,0.0002712,96349.0,96348.0,1.2253793]
[1734846865879,0.0002712,96349.0,96348.0,1.2313793]
[1734846866814,0.0002712,96349.0,96348.0,1.2253793]
[1734846867018,0.0002712,96349.0,96348.0,1.2283793]
[1734846867596,0.0002712,96349.0,96348.0,1.2253793]
[1734846867996,0.0002712,96349.0,96348.0,1.2293793]
[1734846868395,0.0002712,96349.0,96348.0,1.2253793]
[1734846868782,0.0002712,96349.0,96348.0,1.75189917]
[1734846869217,0.0002712,96349.0,96348.0,1.75289917]
[1734846869412,0.0002712,96349.0,96348.0,1.74789917]
[1734846869611,0.0002712,96349.0,96348.0,1.75089917]
[1734846869852,0.0002712,96349.0,96348.0,1.2323793]
[1734846870168,0.0002712,96349.0,96348.0,1.2253793]
[1734846870889,0.0002712,96349.0,96348.0,1.0052166]
[1734846871094,0.0002712,96349.0,96348.0,1.0022166]
[1734846871202,0.0002712,96349.0,96348.0,1.0062166]
[1734846871664,0.0002712,96349.0,96348.0,1.09841491]
[1734846871853,0.0002712,96349.0,96348.0,1.09441491]
[1734846872058,0.0002712,96349.0,96348.0,1.08741491]
[1734846872369,0.0002712,96349.0,96348.0,1.11041491]
[1734846872584,0.0002712,96349.0,96348.0,0.57908671]
[1734846872736,0.0002712,96349.0,96348.0,0.4818884]
[1734846873159,0.0012712,96349.0,96348.0,0.4818884]
[1734846873376,0.0002712,96349.0,96348.0,0.4818884]
[1734846873727,0.0012712,96349.0,96348.0,0.4818884]
[1734846875344,0.0012712,96349.0,96348.0,0.1013084]
[1734846875530,0.0002712,96349.0,96348.0,0.1013084]
[1734846875885,0.0002712,96349.0,96348.0,0.1023084]
[1734846876082,0.0002712,96349.0,96348.0,0.1013084]
[1734846876331,0.00156857,96349.0,96337.0,0.09219831]
[1734846876504,0.00256857,96349.0,96338.0,0.3089104]
[1734846876708,0.00156857,96349.0,96338.0,0.3089104]
[1734846877145,0.00156857,96349.0,96348.0,0.006]
[1734846877485,0.00156857,96349.0,96339.0,0.2076]
[1734846877619,0.00156857,96349.0,96341.0,0.207595]
[1734846877819,0.00156857,96349.0,96342.0,0.1013084]
[1734846878600,0.00156857,96349.0,96343.0,0.207591]
[1734846878917,0.00156857,96349.0,96344.0,0.1013084]
[1734846879580,0.00156857,96349.0,96345.0,0.207587]
[1734846879765,0.00156857,96349.0,96346.0,0.1013084]
[1734846880112,0.0002712,96349.0,96347.0,0.207583]
[1734846880320,0.0002712,96349.0,96348.0,0.1013084]
[1734846882939,0.0002712,96349.0,96348.0,0.1033084]
[1734846883147,0.0002712,96349.0,96348.0,0.1083084]
[1734846883342,0.0002712,96349.0,96348.0,0.1013084]
[1734846883734,0.0002712,96349.0,96348.0,0.1073084]
[1734846884002,0.0002712,96349.0,96348.0,0.1013084]
[1734846884696,0.0002712,96349.0,96348.0,0.1117712]
[1734846885148,0.0002712,96349.0,96348.0,0.1147712]
[1734846885627,0.0002712,96349.0,96348.0,0.1187712]
[1734846885824,0.0002712,96349.0,96348.0,0.1217712]
[1734846902094,0.0002712,96349.0,96348.0,0.1447712]
[1734846904054,0.0002712,96349.0,96348.0,0.1417712]
[1734846904256,0.0002712,96349.0,96348.0,0.1347712]
[1734846905095,0.0002712,96349.0,96348.0,0.1147712]
[1734846905681,0.0002712,96349.0,96348.0,0.1217712]
[1734846906411,0.0002712,96349.0,96348.0,0.1147712]
[1734846906770,0.0002712,96349.0,96348.0,0.1167712]
[1734846907034,0.0002712,96349.0,96348.0,0.1137712]
[1734846907250,0.0002712,96349.0,96348.0,0.1117712]
[1734846907409,0.0002712,96349.0,96348.0,0.1197712]
[1734846908061,0.0002712,96349.0,96348.0,0.1187712]
[1734846908773,0.0002712,96349.0,96348.0,0.1117712]
[1734846908962,0.0012712,96349.0,96348.0,0.1117712]
[1734846909350,0.0002712,96349.0,96348.0,0.1117712]
[1734846909754,0.0012712,96349.0,96348.0,0.1117712]
[1734846911150,0.0845685,96349.0,96348.0,0.1013084]
[1734846911355,0.2921465,96349.0,96344.0,0.09219831]
[1734846911557,0.00129744,96348.0,96345.0,0.1013084]
[1734846911707,0.207583,96347.0,96344.0,0.09219831]
[1734846911910,0.00129746,96346.0,96344.0,0.09219831]
[1734846912531,0.207583,96347.0,96344.0,0.09219831]
[1734846912749,0.00129746,96346.0,96344.0,0.09219831]
[1734846913527,0.00229746,96346.0,96333.0,0.207611]
[1734846913700,0.00129746,96346.0,96336.0,0.1013084]
[1734846914531,0.00129746,96346.0,96344.0,0.003]
[1734846914914,0.00129746,96346.0,96336.0,0.1013084]
[1734846915242,0.00129746,96346.0,96344.0,0.006]
[1734846915745,0.00129749,96345.0,96344.0,0.006]
[1734846915916,0.00129749,96348.0,96344.0,0.006]
[1734846916923,0.00129749,96348.0,96338.0,0.415202]
[1734846917144,0.00129749,96348.0,96340.0,0.207598]
[1734846917360,0.00129749,96348.0,96344.0,0.003]
[1734846917901,0.00129749,96348.0,96341.0,0.1013084]
[1734846918190,0.00229749,96348.0,96341.0,0.1013084]
[1734846918351,0.00229749,96348.0,96344.0,0.005]
[1734846918738,0.207583,96347.0,96344.0,0.005]
[1734846918947,0.255487,96345.0,96344.0,0.007]
[1734846919138,0.433187,96345.0,96344.0,0.007]
[1734846919346,0.60422352,96345.0,96344.0,0.007]
[1734846919669,0.60422352,96345.0,96344.0,0.002]
[1734846919901,0.80553192,96345.0,96344.0,0.002]
[1734846920094,0.80553192,96345.0,96344.0,0.005]
[1734846920301,0.80553192,96345.0,96344.0,0.003]
[1734846920563,0.6844954,96345.0,96344.0,0.003]
[1734846920737,1.02875079,96345.0,96344.0,0.003]
[1734846921299,0.207606,96336.0,96328.0,0.0001712]
[1734846921503,0.285306,96336.0,96328.0,0.0001712]
[1734846922986,0.287306,96336.0,96328.0,0.0001712]
[1734846923204,0.285306,96336.0,96328.0,0.0001712]
[1734846923808,0.286306,96336.0,96328.0,0.0001712]
[1734846924788,0.290306,96336.0,96328.0,0.0001712]
[1734846925449,0.292306,96336.0,96328.0,0.0001712]
[1734846927982,0.341906,96336.0,96328.0,0.0001712]
[1734846928968,0.591906,96336.0,96328.0,0.0001712]
[1734846929392,0.7932144,96336.0,96328.0,0.0001712]
[1734846933015,0.7922144,96336.0,96328.0,0.0001712]
[1734846933365,0.7952144,96336.0,96328.0,0.0001712]
[1734846934301,0.7892144,96336.0,96328.0,0.0001712]
[1734846934514,0.7952144,96336.0,96335.0,0.0011712]
[1734846934868,0.7953001,96336.0,96335.0,0.0011712]
[1734846936566,0.7953001,96336.0,96335.0,2e-07]
[1734846938624,0.6953001,96336.0,96335.0,2e-07]
[1734846939502,0.7923001,96336.0,96335.0,2e-07]
[1734846939703,0.7953001,96336.0,96335.0,2e-07]
[1734846940309,0.7923001,96336.0,96335.0,2e-07]
[1734846940517,0.457621,96329.0,96328.0,0.0001712]
[1734846940717,0.5589294,96329.0,96328.0,0.0001712]
[1734846941256,0.4589294,96329.0,96328.0,0.0001712]
[1734846941658,0.357621,96329.0,96328.0,0.0001712]
[1734846941884,0.363621,96329.0,96328.0,0.0011712]
[1734846942964,0.366621,96329.0,96328.0,0.0011712]
[1734846943368,0.357621,96329.0,96328.0,0.0001712]
[1734846943790,0.366621,96329.0,96328.0,0.0001712]
[1734846944387,0.371621,96329.0,96328.0,0.0001712]
[1734846946332,0.468621,96329.0,96328.0,0.0001712]
[1734846946548,0.546421,96329.0,96328.0,0.0001712]
[1734846946761,0.6387294,96329.0,96328.0,0.0001712]
[1734846946964,0.6427294,96329.0,96328.0,0.0001712]
[1734846947105,0.6407294,96329.0,96328.0,0.0001712]
[1734846947513,0.6397294,96329.0,96328.0,0.0001712]
[1734846947715,0.6447294,96329.0,96328.0,0.0001712]
[1734846948059,0.6397294,96329.0,96328.0,0.0001712]
[1734846948480,0.6457294,96329.0,96328.0,0.0001712]
[1734846949265,0.6427294,96329.0,96328.0,0.0001712]
[1734846949666,0.6457294,96329.0,96328.0,0.0001712]
[1734846950452,0.7457294,96329.0,96328.0,0.0001712]
[1734846950651,0.1,96324.0,96295.0,0.0783]
[1734846950853,0.207664,96310.0,96298.0,0.00016349]
[1734846951074,0.00129809,96309.0,96298.0,0.10147189]
[1734846951253,0.00129807,96308.0,96298.0,0.10147189]
[1734846951452,0.00129807,96307.0,96298.0,0.10147189]
[1734846952508,0.00129807,96306.0,96298.0,0.10147189]
[1734846953030,0.00129807,96306.0,96298.0,0.10347189]
[1734846953383,0.00129807,96306.0,96298.0,0.10147189]
[1734846953596,0.207686,96299.0,96298.0,0.00416349]
[1734846954370,0.207686,96299.0,96298.0,0.00216349]
[1734846954803,0.207686,96299.0,96298.0,0.00916349]
[1734846955964,0.207686,96299.0,96298.0,0.00716349]
[1734846956204,0.207686,96299.0,96298.0,0.00016349]
[1734846956382,0.207686,96299.0,96298.0,0.00316349]
[1734846956826,0.207686,96299.0,96298.0,0.00916349]
[1734846957001,0.207686,96299.0,96298.0,0.00924919]
[1734846959410,0.207686,96299.0,96298.0,0.00624919]
[1734846959611,0.207686,96299.0,96298.0,0.00024919]
[1734846959846,0.211686,96299.0,96298.0,0.00024919]
[1734846960238,0.207686,96299.0,96298.0,0.00024919]
[1734846960456,0.210686,96299.0,96298.0,0.00024919]
[1734846960641,0.211686,96299.0,96298.0,0.00024919]
[1734846960854,0.208686,96299.0,96298.0,0.00024919]
[1734846961001,0.211686,96299.0,96298.0,0.00024919]
[1734846961989,0.210686,96299.0,96298.0,0.00024919]
[1734846962434,0.208686,96299.0,96298.0,0.00024919]
[1734846962630,0.211686,96299.0,96298.0,0.00024919]
[1734846962834,0.210686,96299.0,96298.0,0.00024919]
[1734846963109,0.7844944,96299.0,96298.0,0.00024919]
[1734846963276,0.207749,96270.0,96255.0,0.0826]
[1734846963477,0.207749,96270.0,96269.0,0.00024916]
[1734846966086,0.207749,96270.0,96269.0,0.00124916]
[1734846966284,0.207749,96270.0,96269.0,0.00324916]
[1734846966491,0.207749,96270.0,96269.0,0.00024916]
[1734846967049,0.207749,96270.0,96269.0,0.00124916]
[1734846967658,0.207749,96270.0,96269.0,0.00024916]
[1734846967857,0.207749,96270.0,96269.0,0.00124916]
[1734846991728,0.1,96268.0,96267.0,7.6e-07]
[1734846991937,0.307781,96255.0,96252.0,8.57e-05]
[1734846992144,0.284085,96253.0,96252.0,8.57e-05]
[1734846992350,0.4853934,96253.0,96252.0,8.57e-05]
[1734846992994,0.3853934,96253.0,96252.0,8.57e-05]
[1734846993354,0.6353934,96253.0,96252.0,8.57e-05]
[1734846993556,0.6567109,96253.0,96252.0,8.57e-05]
[1734846993756,0.7567109,96253.0,96252.0,8.57e-05]
[1734846994216,0.7587109,96253.0,96252.0,8.57e-05]
[1734846995115,0.7567109,96253.0,96252.0,8.57e-05]
[1734846995274,0.8039109,96253.0,96252.0,7e-07]
[1734846995878,0.83717569,96253.0,96252.0,7e-07]
[1734846996291,0.83917569,96253.0,96252.0,7e-07]
[1734846996698,0.83617569,96253.0,96252.0,7e-07]
[1734846997159,0.83717569,96253.0,96252.0,7e-07]
[1734846997495,0.84517569,96253.0,96252.0,7e-07]
[1734846997828,0.84517569,96253.0,96238.0,0.0001712]
[1734846997829,0.1,96239.0,96238.0,0.0001712]
[1734846998016,0.56042265,96239.0,96238.0,0.00071661]
[1734846998213,0.5591234,96239.0,96238.0,0.00071661]
[1734846998773,0.357815,96239.0,96238.0,0.00071661]
[1734846999512,0.361815,96239.0,96238.0,0.00071661]
[1734847000754,0.363815,96239.0,96238.0,0.00071661]
[1734847001294,0.361815,96239.0,96238.0,0.00071661]
[1734847001501,0.213815,96239.0,96238.0,0.00071661]
[1734847002053,0.211815,96239.0,96238.0,0.00071661]
[1734847002255,0.213815,96239.0,96238.0,0.00071661]
[1734847002895,0.209815,96239.0,96238.0,0.00071661]
[1734847003092,0.213815,96239.0,96238.0,0.00071661]
[1734847003469,0.209815,96239.0,96238.0,0.00071661]
[1734847003702,0.213815,96239.0,96238.0,0.00071661]
[1734847003912,0.211815,96239.0,96238.0,0.00071661]
[1734847004105,0.209815,96239.0,96238.0,0.00071661]
[1734847004496,0.213815,96239.0,96238.0,0.00071661]
[1734847004692,0.211815,96239.0,96238.0,0.00071661]
[1734847004903,0.213815,96239.0,96238.0,0.00071661]
[1734847005739,0.002,96239.0,96238.0,0.22472501]
[1734847006082,0.006,96239.0,96238.0,0.22472501]
[1734847006465,0.002,96239.0,96238.0,0.43254301]
[1734847006676,0.00129876,96254.0,96238.0,0.43254301]
[1734847007008,0.002,96239.0,96238.0,0.33123461]
[1734847007389,0.002,96239.0,96238.0,0.33523461]
[1734847007599,0.00129879,96258.0,96240.0,0.046]
[1734847007857,0.002,96254.0,96241.0,0.0767]
[1734847008203,0.002,96254.0,96253.0,0.207783]
[1734847008371,0.00147009,96267.0,96253.0,0.284483]
[1734847008570,0.00147009,96267.0,96258.0,0.207773]
[1734847008815,0.00147002,96267.0,96258.0,0.207773]
[1734847009139,0.00147002,96267.0,96254.0,0.3550914]
[1734847009336,0.207757,96266.0,96254.0,0.3550914]
[1734847009471,0.00129865,96265.0,96254.0,0.3550914]
[1734847009873,0.00129865,96265.0,96259.0,0.207772]
[1734847010119,0.0001714,96267.0,96259.0,0.207772]
[1734847010374,0.0001714,96267.0,96261.0,0.207768]
[1734847010644,0.0001714,96267.0,96262.0,0.1013084]
[1734847011030,0.0001714,96267.0,96263.0,0.207764]
[1734847011363,0.0001714,96267.0,96264.0,0.0767]
[1734847013500,0.0001714,96267.0,96264.0,0.0777]
[1734847013840,0.0001714,96267.0,96265.0,0.207759]
[1734847014088,0.0001714,96267.0,96265.0,0.3090674]
[1734847014501,0.0001714,96267.0,96266.0,0.1013084]
[1734847016895,0.0001714,96267.0,96266.0,0.1043084]
[1734847019944,0.0001714,96267.0,96266.0,0.003]
[1734847020269,0.00147004,96267.0,96266.0,0.003]
[1734847021127,0.00147004,96267.0,96240.0,8.57e-05]
[1734847021332,0.00147004,96267.0,96241.0,0.1013084]
[1734847021508,0.00747004,96267.0,96241.0,0.1013084]
[1734847021917,0.415518,96265.0,96241.0,0.1013084]
[1734847022122,0.00129882,96264.0,96241.0,0.3091194]
[1734847022485,0.207773,96259.0,96248.0,0.207794]
[1734847022688,0.00129869,96258.0,96249.0,0.1013084]
[1734847022906,0.00129869,96257.0,96249.0,0.1013084]
[1734847023694,0.20779,96251.0,96240.0,0.2078977]
[1734847023938,0.00129869,96250.0,96249.0,0.001]
[1734847024148,0.207779,96256.0,96241.0,0.1013084]
[1734847024403,0.207783,96254.0,96241.0,0.1013084]
[1734847024632,0.00129883,96253.0,96241.0,0.1013084]
[1734847025299,0.207787,96252.0,96241.0,0.1013084]
[1734847025497,0.00129883,96251.0,96241.0,0.1013084]
[1734847027162,0.207805,96244.0,96240.0,8.57e-05]
[1734847027421,0.207809,96242.0,96240.0,8.57e-05]
[1734847027702,0.00129894,96241.0,96240.0,8.57e-05]
[1734847030312,0.00129894,96241.0,96240.0,0.0020857]
[1734847045269,0.00129894,96241.0,96240.0,0.0010857]
[1734847045935,0.00129894,96241.0,96240.0,0.0020857]
[1734847046137,0.207802,96246.0,96240.0,0.0020857]
[1734847046303,0.207805,96244.0,96240.0,0.0020857]
[1734847046486,0.00129898,96243.0,96240.0,0.0020857]
[1734847046920,0.00129898,96243.0,96240.0,0.0010857]
[1734847047132,0.207809,96242.0,96240.0,8.57e-05]
[1734847047331,0.00129899,96241.0,96240.0,8.57e-05]
[1734847049331,0.00129899,96241.0,96240.0,0.0010857]
[1734847049876,0.00129899,96241.0,96240.0,0.0020857]
[1734847051677,0.00129899,96241.0,96240.0,0.0010857]
[1734847051896,0.00129899,96241.0,96240.0,0.0020857]
[1734847052107,0.00129899,96241.0,96240.0,0.0010857]
[1734847052307,0.00129899,96241.0,96240.0,0.0020857]
[1734847052804,0.00129899,96241.0,96240.0,8.57e-05]
[1734847052966,0.00129899,96241.0,96240.0,0.0020857]
[1734847055784,0.20779,96251.0,96240.0,0.0020857]
[1734847056006,0.00129888,96250.0,96240.0,0.0020857]
[1734847056571,0.00129888,96250.0,96241.0,0.1013084]
[1734847056777,0.0001712,96252.0,96241.0,0.1013084]
[1734847057184,0.003,96251.0,96241.0,0.1013084]
[1734847057378,0.00129879,96250.0,96241.0,0.1013084]
[1734847057608,0.00129879,96250.0,96247.0,0.207796]
[1734847058595,0.0001712,96252.0,96247.0,0.207796]
[1734847058836,0.004,96250.0,96247.0,0.207796]
[1734847059040,0.001,96250.0,96247.0,0.207796]
[1734847059242,0.0001712,96252.0,96247.0,0.207796]
[1734847061139,0.0001712,96252.0,96247.0,0.208796]
[1734847061531,0.0001712,96252.0,96247.0,0.207796]
[1734847061968,0.0001712,96252.0,96247.0,0.209796]
[1734847062179,0.0001712,96252.0,96247.0,0.208796]
[1734847062374,0.0001712,96252.0,96249.0,0.207794]
[1734847062934,0.0001712,96252.0,96249.0,0.415588]
[1734847063563,0.0001712,96252.0,96249.0,0.416588]
[1734847064151,0.0001712,96252.0,96249.0,0.417588]
[1734847064579,0.0001712,96252.0,96249.0,0.416588]
[1734847065053,0.0001712,96252.0,96249.0,0.417588]
[1734847065512,0.0001712,96252.0,96249.0,0.416588]
[1734847065903,0.0001712,96252.0,96249.0,0.418588]
[1734847066706,0.0001712,96252.0,96249.0,0.416588]
[1734847066902,0.0001712,96252.0,96249.0,0.415588]
[1734847067106,0.0001712,96252.0,96249.0,0.416588]
[1734847067309,0.0001712,96252.0,96249.0,0.417588]
[1734847069301,0.0001712,96252.0,96251.0,0.20779]
[1734847069504,0.0001712,96252.0,96251.0,0.3090984]
[1734847070552,0.0001712,96252.0,96251.0,0.3100984]
[1734847070782,0.0011712,96252.0,96251.0,0.3190984]
[1734847071191,0.0011712,96252.0,96251.0,0.3180984]
[1734847071309,0.0011712,96252.0,96251.0,0.3220984]
[1734847074521,0.0011712,96252.0,96251.0,0.3324634]
[1734847075356,0.0011712,96252.0,96251.0,0.4081634]
[1734847075767,0.0011712,96252.0,96251.0,0.4534634]
[1734847080997,0.0011712,96252.0,96251.0,0.1246734]
[1734847081203,0.0011712,96252.0,96251.0,0.013]
[1734847082036,0.00146998,96252.0,96251.0,0.004]
[1734847082461,0.08116998,96252.0,96251.0,0.01]
[1734847082665,0.12946998,96252.0,96251.0,0.004]
[1734847083080,0.12946998,96252.0,96251.0,0.007]
[1734847083286,0.04976998,96252.0,96249.0,8.56e-05]
[1734847083487,0.0797,96250.0,96249.0,8.56e-05]
[1734847084537,0.3297,96250.0,96249.0,8.56e-05]
[1734847085132,0.3307,96250.0,96249.0,8.56e-05]
[1734847085899,0.3327,96250.0,96249.0,8.56e-05]
[1734847086466,0.35346798,96250.0,96249.0,8.56e-05]
[1734847086619,0.36103778,96250.0,96249.0,8.56e-05]
[1734847086785,0.36203778,96250.0,96249.0,8.56e-05]
[1734847088006,0.4550762,96250.0,96249.0,8.56e-05]
[1734847088347,0.4580762,96250.0,96249.0,8.56e-05]
[1734847088754,0.4550762,96250.0,96249.0,8.56e-05]
[1734847089272,0.70588673,96250.0,96249.0,8.56e-05]
[1734847089482,0.70788673,96250.0,96249.0,8.56e-05]
[1734847090939,0.50372407,96250.0,96249.0,8.56e-05]
[1734847092156,0.36403778,96250.0,96249.0,8.56e-05]
[1734847092693,0.56534618,96250.0,96249.0,8.56e-05]
[1734847094495,0.6584261,96250.0,96249.0,8.56e-05]
[1734847097022,0.56534618,96250.0,96249.0,8.56e-05]
[1734847102888,0.46534618,96250.0,96249.0,8.56e-05]
[1734847104537,0.2432698,96250.0,96249.0,8.56e-05]
[1734847105722,0.3432698,96250.0,96249.0,8.56e-05]
[1734847106851,0.2432698,96250.0,96249.0,8.56e-05]
[1734847107425,0.153,96250.0,96249.0,8.56e-05]
[1734847107623,0.00429894,96250.0,96249.0,8.56e-05]
[1734847108591,0.00229894,96250.0,96249.0,8.56e-05]
[1734847108944,0.00429894,96250.0,96249.0,8.56e-05]
[1734847109149,0.00329894,96250.0,96249.0,8.56e-05]
[1734847109600,0.00429894,96250.0,96249.0,8.56e-05]
[1734847110049,0.00329894,96250.0,96249.0,8.56e-05]
[1734847110755,0.00129894,96250.0,96249.0,8.56e-05]
[1734847110982,0.00229894,96250.0,96249.0,8.56e-05]
[1734847111397,0.00129894,96250.0,96249.0,8.56e-05]
[1734847111525,0.00229894,96250.0,96249.0,8.56e-05]
[1734847112789,0.207794,96249.0,96239.0,0.0795366]
[1734847112993,0.00129887,96248.0,96239.0,0.0795366]
[1734847114687,0.00129887,96247.0,96239.0,0.0795366]
[1734847115066,0.00129887,96250.0,96240.0,0.207813]
[1734847116249,0.00129886,96249.0,96240.0,0.207813]
[1734847117251,0.207807,96243.0,96238.0,0.00071661]
[1734847117459,0.415622,96241.0,96238.0,0.00071661]
[1734847117693,0.00129899,96240.0,96238.0,0.00071661]
[1734847118324,0.207815,96239.0,96238.0,0.00071661]
[1734847118595,0.22726315,96239.0,96238.0,0.00071661]
[1734847118801,0.22726315,96239.0,96238.0,0.00371661]
[1734847119095,0.22726315,96239.0,96238.0,0.00071661]
[1734847119541,0.22726315,96239.0,96238.0,0.00171661]
[1734847119993,0.22726315,96239.0,96238.0,0.00071661]
[1734847120439,0.22726315,96239.0,96238.0,0.00571661]
[1734847120965,0.22726315,96239.0,96238.0,0.00271661]
[1734847121166,0.22726315,96239.0,96238.0,0.00571661]
[1734847133892,0.22743455,96239.0,96238.0,0.00571661]
[1734847140662,0.32051447,96239.0,96238.0,0.00571661]
[1734847142834,0.22743455,96239.0,96238.0,0.00571661]
[1734847145118,0.56053455,96239.0,96238.0,0.00571661]
[1734847145278,0.76184295,96239.0,96238.0,0.00571661]
[1734847145481,0.80804295,96239.0,96238.0,0.00571661]
[1734847145680,0.83104295,96239.0,96238.0,0.00571661]
[1734847146165,0.83104295,96239.0,96238.0,6.1e-07]
[1734847146306,0.8145948,96239.0,96238.0,6.1e-07]
[1734847146505,0.83407696,96239.0,96238.0,6.1e-07]
[1734847146935,0.557831,96232.0,96203.0,0.13830481]
[1734847147108,0.7422394,96232.0,96231.0,0.00033486]
[1734847147318,0.76172156,96232.0,96231.0,0.00033486]
[1734847147687,0.207895,96202.0,96201.0,8.57e-05]
[1734847147837,0.207895,96202.0,96201.0,0.00024954]
[1734847148203,0.22737716,96202.0,96201.0,0.00024954]
[1734847149251,0.32737716,96202.0,96201.0,0.00024954]
[1734847149492,0.42868556,96202.0,96201.0,0.00024954]
[1734847150834,0.42868556,96202.0,96201.0,0.00424954]
[1734847151036,0.42868556,96202.0,96201.0,0.00024954]
[1734847151567,0.43924749,96202.0,96201.0,0.00024954]
[1734847152175,0.33924749,96202.0,96201.0,0.00024954]
[1734847152396,0.23793909,96202.0,96201.0,0.00024954]
[1734847152605,0.23793909,96202.0,96201.0,0.00224954]
[1734847153831,0.22737716,96202.0,96201.0,0.00224954]
[1734847157304,0.22837716,96202.0,96201.0,0.00024954]
[1734847158074,0.22737716,96202.0,96201.0,0.00024954]
[1734847158497,0.22837716,96202.0,96201.0,0.00024954]
[1734847158752,0.22837716,96202.0,96201.0,0.08124954]
[1734847158753,0.001,96202.0,96201.0,0.08124954]
[1734847158971,0.01948216,96203.0,96201.0,0.08124954]
[1734847159179,0.00129934,96213.0,96201.0,0.08124954]
[1734847159816,0.00129934,96213.0,96202.0,0.207895]
[1734847160246,0.00129934,96212.0,96202.0,0.207895]
[1734847160662,0.01948216,96217.0,96202.0,0.207895]
[1734847160869,0.003,96213.0,96204.0,0.207891]
[1734847161039,0.00129931,96216.0,96204.0,0.207891]
[1734847161040,0.00129931,96216.0,96204.0,0.3091994]
[1734847161273,0.001,96213.0,96204.0,0.3091994]
[1734847161513,0.003,96213.0,96204.0,0.3091994]
[1734847161684,0.00129924,96217.0,96209.0,0.20788]
[1734847161864,0.00129925,96216.0,96209.0,0.20788]
[1734847162869,0.00129925,96216.0,96205.0,0.3091974]
[1734847164469,0.002,96216.0,96205.0,0.3091974]
[1734847164672,0.00129924,96215.0,96205.0,0.3091974]
[1734847165166,0.00129924,96215.0,96205.0,0.5170864]
[1734847166063,0.00129924,96214.0,96205.0,0.5170864]
[1734847166287,0.002,96216.0,96205.0,0.5170864]
[1734847166663,0.002,96216.0,96206.0,0.207887]
[1734847166875,0.002,96216.0,96206.0,0.3091954]
[1734847167077,0.00129924,96215.0,96206.0,0.3091954]
[1734847167273,0.004,96215.0,96206.0,0.3091954]
[1734847167485,0.002,96215.0,96206.0,0.3091954]
[1734847167943,0.00129924,96219.0,96206.0,0.3121954]
[1734847168101,0.00129924,96219.0,96206.0,0.3101954]
[1734847168302,0.00129924,96218.0,96206.0,0.3141954]
[1734847168761,0.00129924,96218.0,96206.0,0.3131954]
[1734847168978,0.00129924,96218.0,96206.0,0.3141954]
[1734847169152,0.00129924,96218.0,96206.0,0.3101954]
[1734847169310,0.02069771,96218.0,96206.0,0.3101954]
[1734847169692,0.01939847,96217.0,96206.0,0.3101954]
[1734847169900,0.00129924,96216.0,96206.0,0.3101954]
[1734847170362,0.00129924,96216.0,96206.0,0.1013084]
[1734847170606,0.0461,96216.0,96206.0,0.001]
[1734847170859,0.207886,96207.0,96206.0,0.003]
[1734847171102,0.207886,96207.0,96201.0,0.00024954]
[1734847171388,0.207886,96207.0,96206.0,0.004]
[1734847171647,0.207886,96207.0,96206.0,0.001]
[1734847171861,0.207886,96207.0,96201.0,0.00024954]
[1734847171862,0.22728447,96207.0,96201.0,0.00024954]
[1734847172349,0.01939847,96206.0,96201.0,0.00024954]
[1734847172603,0.01649037,96206.0,96201.0,0.00224954]
[1734847172849,0.207886,96207.0,96201.0,0.00224954]
[1734847173335,0.00129941,96206.0,96201.0,0.00224954]
[1734847173810,0.00129941,96206.0,96201.0,0.00024954]
[1734847174296,0.207891,96204.0,96201.0,0.00224954]
[1734847174534,0.207895,96202.0,96201.0,0.00224954]